Cogmind - Beta 15 @@@ ROGUE MODE // 2025.05.24 @ 10:19:23 Player: Nalesnig Result: Destroyed by DAS Turret with DAS Cannon Performance ------------- Evolutions (1) 500 Regions Visited (5) 1000 Robots Destroyed (59) 295 Value Destroyed (1085) 1085 Prototype IDs (31) 620 Alien Tech Used (0) 0 Bonus (300) 300 TOTAL SCORE: 3800 Bonus ------- Aligned with FarCom 300 Cogmind --------- Core Integrity 0/400 Matter 285/300 Energy 100/100 System Corruption 3% Temperature Cool (0) Movement Core (900) Ox17 Location -9/Exiles Parts ------- > --- POWER (1) -------- (None) > --- PROPULSION (3) --- (None) > --- UTILITY (3) ------ High-capacity Storage Unit Seismic Detector Splice Drone Bay (3/6) > --- WEAPON (2) ------- Minigun > --- INVENTORY (20) --- Improved Ion Engine Heavy Ion Engine Light Fission Core Light Fission Core Potential Leg Potential Leg Improved Heat Sink Huge Storage Unit Heavy Armor Plating Hardlight Generator Hacking Suite EM Pulse Cannon Datajack Peak State ------------ > --- POWER ------------ Heavy Ion Engine > --- PROPULSION ------- Light Treads Light Treads Improved Treads > --- UTILITY ---------- Large Storage Unit Power Shielding Splice Drone Bay > --- WEAPON ----------- Minigun Maul > --- INVENTORY -------- Improved Ion Engine Heavy Ion Engine Light Treads Improved Treads Improved Heat Sink High-capacity Storage Unit Huge Storage Unit Heavy Armor Plating Hardlight Generator Hacking Suite EM Pulse Cannon Minigun Rocket Launcher Datajack [Rating: 24] Favorites ----------- Power Heavy Ion Engine Engine Heavy Ion Engine Propulsion Light Treads Treads Light Treads Utility Seismic Detector Device Seismic Detector Storage Large Storage Unit Protection Power Shielding Weapon Light Assault Rifle Ballistic Gun Light Assault Rifle Ballistic Cannon Light Cannon Launcher Rocket Launcher Impact Weapon Maul Build | -11 -10 -10 -9 -9 -9 ------- Run | Yrd Mat Min Mat Min Exi Slots Evolved 2 | . . . 2 . . Power . | . . . . . . Propulsion 1 | . . . 1 . . Utility 1 | . . . 1 . . Weapon . | . . . . . . Parts Attached 32 | 7 9 1 11 1 3 Power 6 | 1 3 . 2 . . Engine 6 | 1 3 . 2 . . Core . | . . . . . . Reactor . | . . . . . . Propulsion 9 | 2 1 . 4 . 2 Treads 9 | 2 1 . 4 . 2 Leg . | . . . . . . Wheel . | . . . . . . Hover . | . . . . . . Flight . | . . . . . . Utility 9 | 2 3 . 3 1 . Device 3 | 1 . . 1 1 . Storage 4 | 1 3 . . . . Processor . | . . . . . . Hackware . | . . . . . . Protection 2 | . . . 2 . . Artifact . | . . . . . . Weapon 8 | 2 2 1 2 . 1 Energy Gun . | . . . . . . Energy Cannon . | . . . . . . Ballistic Gun 4 | 2 . . 1 . 1 Ballistic Cannon 2 | . 1 . 1 . . Launcher 1 | . . 1 . . . Special Weapon . | . . . . . . Impact Weapon 1 | . 1 . . . . Slashing Weapon . | . . . . . . Piercing Weapon . | . . . . . . Special Melee Weapon . | . . . . . . Unidentified Prototypes 2 | . 1 . . 1 . Parts Lost 16 | . 3 . 4 . 9 Power 2 | . 1 . . . 1 Propulsion 7 | . 1 . 2 . 4 Utility 2 | . . . 1 . 1 Weapon 5 | . 1 . 1 . 3 Highest Loss Streak 5 | . 2 . 2 . 5 To Critical Strikes 6 | . . . . . 6 Average Backups 11 | 1 8 11 13 14 14 Power 2 | . 1 3 3 2 4 Propulsion . | . . . 1 2 2 Utility 4 | . 3 4 3 6 5 Weapon 3 | . 1 3 5 3 1 Tool/Special . | . . . . . . Unused Backups 27 | . 2 . 11 . 14 Power 9 | . 1 . 3 . 5 Propulsion 3 | . . . 1 . 2 Utility 6 | . . . 1 . 5 Weapon 8 | . 1 . 6 . 1 Tool/Special 1 | . . . . . 1 Average Slot Usage (%) 92 | . 99 100 95 100 65 Engine 11 | . 13 14 11 11 4 Treads 26 | . 27 28 28 33 14 Device 13 | . 14 14 11 11 17 Storage 12 | . 14 14 11 11 11 Protection 4 | . . . 11 11 3 Ballistic Gun 12 | . 25 14 2 11 9 Ballistic Cannon 5 | . 1 . 15 . . Impact Weapon 5 | . 1 13 4 11 3 Peak Build Rating 24 | 7 11 11 18 24 22 Average Rating 12 | 5 7 11 13 18 18 On Entrance 11 | . 7 11 11 18 19 Naked Turns . | . . . . . . Heaviest Build 57 | 12 33 34 36 56 57 Greatest Support 63 | 40 40 40 63 63 63 Greatest Overweight (x) 17 | . . . . . 17 Average Overweight (x) . | . . . . . 3 Largest Inventory Capacity 20 | 8 20 15 15 20 20 Average Capacity 14 | 6 10 15 15 17 20 Most Carried 20 | 2 11 12 15 16 20 Average Carried 12 | 1 8 11 14 15 15 Final Capacity 20 | 8 15 15 15 20 20 Final Carried 16 | 2 11 12 15 16 14 Class Distribution -------------------- 100% | Mutant Dominant Class ---------------- Mutant | -10/Materials Mutant | -10/Mines Mutant | -9/Materials Mutant | -9/Mines Mutant | -9/Exiles Resources | -11 -10 -10 -9 -9 -9 ----------- Run | Yrd Mat Min Mat Min Exi Matter Collected 1434 | 298 315 1 687 . 133 Remotely . | . . . . . . Salvage Created 1828 | 117 611 184 912 . 4 Parts 92 | 11 26 5 50 . . Haulers Intercepted 7 | . 2 . 5 . . Recyclers Shooed 3 | . 3 . . . . Parts Field Recycled . | . . . . . . Retrieved Matter . | . . . . . . Parts Self-Destructed . | . . . . . . Prevented . | . . . . . . Kills | -11 -10 -10 -9 -9 -9 ------- Run | Yrd Mat Min Mat Min Exi Combat Hostiles Destroyed 39 | . 12 3 17 . 7 Melee 1 | . 1 . . . . Guns 11 | . 9 . 2 . . Cannons 13 | . 2 . 11 . . AOE 14 | . . 3 4 . 7 Classes Destroyed 11 | 2 5 . 3 . 1 Worker 1 | . . . 1 . . Tunneler 6 | 3 1 1 1 . . Hauler 7 | . 2 . 5 . . Recycler 7 | 1 1 1 4 . . Mechanic 1 | . . . 1 . . Operator 1 | . 1 . . . . Watcher 4 | . 1 . 3 . . Swarmer 13 | . 3 3 7 . . Grunt 14 | . 9 . 5 . . Sentry 5 | . . . 5 . . Assembled 7 | . . . . . 7 Best Kill Streak 7 | 4 4 3 4 . 7 Combat Bots Only 7 | . 3 3 4 . 7 Max Kills in Single Turn 3 | 1 1 2 2 . 3 Gunslinging . | . . . . . . Exploded 3 | . . 2 2 . 3 Melee 1 | . 1 . . . . Uniques/NPCs Destroyed 1 | . . . . . 1 8R-AWN (-9/Exiles) Combat | -11 -10 -10 -9 -9 -9 -------- Run | Yrd Mat Min Mat Min Exi Hostile Shots Fired 250 | . 69 5 72 . 104 Missed 72 | . 15 2 24 . 31 Hits 178 | . 54 3 48 . 73 Projectile 178 | . 54 3 48 . 73 Critical Strikes 42 | . 1 . 3 . 38 Actively Blocked 2 | . . . 1 . 1 Damage Taken 3132 | . 610 59 977 . 1486 Core 508 | . 61 36 65 . 346 Absorbed by Shields . | . . . . . . Redirected to Shielding 50 | . . . 37 . 13 Regen/Repaired (Parts) 101 | . . . 101 . . Core Remaining (%) 80 | 100 . 61 . . . Volleys Fired 134 | 7 56 3 60 . 8 Largest 2 | 2 2 1 2 . 1 Hottest 60 | 40 50 33 60 . 33 Shots Fired 253 | 14 112 3 115 . 9 Gun 134 | 14 106 . 13 . 1 Cannon 104 | . 6 . 98 . . Launcher 15 | . . 3 4 . 8 Special . | . . . . . . Kinetic 238 | 14 112 . 111 . 1 Thermal . | . . . . . . Explosive 15 | . . 3 4 . 8 Electromagnetic . | . . . . . . Robot Hit Streak 16 | 5 12 1 16 . 3 Robot Miss Streak 7 | 1 7 1 3 . 1 Penetration Max . | . . . . . . Secondary Targets 1 | . 1 . . . . Max Gunslinging Chain 1 | . 1 . . . . Shots Hit Robots 195 | 9 75 8 87 . 16 Core Hits 86 | 6 31 3 35 . 11 Critical Kills . | . . . . . . Critical Parts Destroyed 6 | . 2 2 1 . 1 Critical Strikes 11 | . 3 2 4 . 2 Blast 4 | . 1 . 3 . . Smash 7 | . 2 2 1 . 2 Melee Attacks 53 | . 7 14 17 . 15 Impact 53 | . 7 14 17 . 15 Slashing . | . . . . . . Piercing . | . . . . . . Sneak Attacks 13 | . 2 2 9 . . Combat Hostiles . | . . . . . . Follow-up Attacks . | . . . . . . Damage Inflicted 4913 | 112 976 698 2287 . 840 Guns 876 | 112 670 . 94 . . Cannons 1191 | . 70 . 1121 . . Explosions 875 | . . 160 294 . 421 Melee 1971 | . 236 538 778 . 419 Ramming . | . . . . . . Kinetic 2067 | 112 740 . 1215 . . Thermal . | . . . . . . Explosive 875 | . . 160 294 . 421 Electromagnetic . | . . . . . . Impact 1971 | . 236 538 778 . 419 Slashing . | . . . . . . Piercing . | . . . . . . Highest Corruption 3 | . . . 3 3 3 Average Corruption 2 | . . . 2 3 3 Corruption Purged . | . . . . . . Corruption Blocked . | . . . . . . Effects 26 | . . . 10 5 11 Message Errors 7 | . . . 3 1 3 Matter Fused 4 | . . . 2 . 2 Heat Flow Errors 2 | . . . 1 . 1 Energy Discharges 3 | . . . . 2 1 Parts Rejected 1 | . . . . . 1 Data Loss (minor) 4 | . . . . 2 2 Data Loss (major) 2 | . . . 2 . . Misfires 2 | . . . 1 . 1 Alerts 1 | . . . 1 . . Overload Shots . | . . . . . . Overflow Damage 933 | . 136 349 336 . 112 Projectiles 15 | . . . 15 . . Explosions 77 | . . . 27 . 50 Melee 841 | . 136 349 294 . 62 Knockbacks 15 | . 2 1 9 . 3 Impact 5 | . 1 1 . . 3 Kinetic 9 | . 1 . 8 . . Secondary 1 | . . . 1 . . Self-Inflicted Damage 138 | . . 36 65 . 37 Shots 4 | . . 1 2 . 1 Rammed . | . . . . . . Targets Rammed . | . . . . . . Kicked . | . . . . . . Crushed . | . . . . . . Highest Temperature 244 | . 36 . 139 . 244 Average Temperature 22 | . 10 . 16 . 120 Received Heat Transfer 486 | . 309 . 177 . . Siege Activations . | . . . . . . Martial Activations . | . . . . . . Shielding Activations . | . . . . . . Robots Disrupted . | . . . . . . Combat Hostiles . | . . . . . . Robots Corrupted 4 | . 1 1 2 . . Combat Hostiles . | . . . . . . Parts Fried 14 | . 4 6 4 . . Impact Corruptions 24 | . 4 10 6 . 4 Robots Melted . | . . . . . . Combat Hostiles . | . . . . . . Parts Melted . | . . . . . . Heat Transferred . | . . . . . . Parts Sabotaged . | . . . . . . Parts Stolen . | . . . . . . Parts Stripped . | . . . . . . Power Chain Reactions . | . . . . . . Alert | -11 -10 -10 -9 -9 -9 ------- Run | Yrd Mat Min Mat Min Exi Maximum Alert Level . | . . . . . . Low Security (%) 100 | 100 100 100 100 100 . Level 1 . | . . . . . . Level 2 . | . . . . . . Level 3 . | . . . . . . Level 4 . | . . . . . . Level 5 . | . . . . . . High Security . | . . . . . . Max Security . | . . . . . . Peak Influence 190 | 10 78 101 190 34 . Initial 34 | . . 22 34 34 . Average 53 | 1 22 6 119 6 . Influence Increases 1204 | 20 402 136 646 . . Destroy 0b10 Robot/C 640 | . 240 60 340 . . Destroy 0b10 Robot/NC 150 | 20 30 25 75 . . Destroy Leader 182 | . 66 10 106 . . Successful Hack 65 | . 48 . 17 . . Disable Machine 15 | . . 15 . . . Destroy Structure 77 | . 3 26 48 . . Partial Spotted 15 | . . . 15 . . Lose Combat Pursuer 60 | . 15 . 45 . . Influence Decreases 1204 | 20 343 106 645 90 . Entered New Map 148 | . . 37 55 56 . Time Decay 924 | 20 251 69 550 34 . Lost Part 70 | . 30 . 40 . . Purge Threat 62 | . 62 . . . . Squads Dispatched 5 | . 3 . 2 . . Investigation 3 | . 2 . 1 . . Extermination . | . . . . . . Reinforcement 2 | . 1 . 1 . . Assault . | . . . . . . Garrison . | . . . . . . Intercept . | . . . . . . Searches Triggered . | . . . . . . Construction Impeded . | . . . . . . Haulers Reinforced . | . . . . . . Active Scanning Responses . | . . . . . . Cargo Convoy Interrupts . | . . . . . . Stealth | -11 -10 -10 -9 -9 -9 --------- Run | Yrd Mat Min Mat Min Exi Distress Signals 4 | . 1 . 3 . . Communications Jammed . | . . . . . . Distress Signals . | . . . . . . Times Spotted 62 | . 23 3 29 . 7 Peak Tracking Total 9 | . 3 3 4 . 9 Tactical Retreats 4 | . 1 . 2 . 1 Traps | -11 -10 -10 -9 -9 -9 ------- Run | Yrd Mat Min Mat Min Exi Traps Triggered 3 | . 1 . 2 . . Indirectly . | . . . . . . Trap Hack Attempts . | . . . . . . Triggered . | . . . . . . Disarmed . | . . . . . . Reprogrammed 4 | . 4 . . . . Reused . | . . . . . . Traps Extracted . | . . . . . . Installed . | . . . . . . Triggered . | . . . . . . Machines | -11 -10 -10 -9 -9 -9 ---------- Run | Yrd Mat Min Mat Min Exi Machines Disabled 4 | . . 1 . . 3 Max in Single Turn 1 | . . 1 . . 1 Machines Repaired . | . . . . . . Machines Dismantled . | . . . . . . Machines Sabotaged . | . . . . . . Overloaded Fab Kills . | . . . . . . Hacking | -11 -10 -10 -9 -9 -9 --------- Run | Yrd Mat Min Mat Min Exi Machines Accessed 16 | . 8 . 6 1 1 Terminals 12 | . 7 . 5 . . Fabricators . | . . . . . . Repair Stations 1 | . . . 1 . . Recycling Units 1 | . 1 . . . . Scanalyzers . | . . . . . . Garrison Access . | . . . . . . Total Hacks 52 | . 31 . 19 1 1 Successful 26 | . 14 . 10 1 1 Failed 26 | . 17 . 9 . . Catastrophic 1 | . . . 1 . . Database Lockouts . | . . . . . . Manual 2 | . 1 . . . 1 Terminals 44 | . 27 . 17 . . Fabricators . | . . . . . . Repair Stations 2 | . . . 2 . . Recycling Units 4 | . 4 . . . . Scanalyzers . | . . . . . . Garrison Access . | . . . . . . Terminal Hacks 23 | . 13 . 8 1 1 Prototype ID Bank 5 | . 3 . 2 . . Open Door 1 | . . . . 1 . Branch Access Points 1 | . 1 . . . . Emergency Access Points 2 | . 1 . 1 . . Terminal Index 1 | . 1 . . . . Unreport Threat 1 | . 1 . . . . Locate Traps 5 | . 3 . 2 . . Reprogram Traps 1 | . 1 . . . . Surveillance Status 2 | . 1 . 1 . . Transport Status 1 | . . . 1 . . Hauler Manifests 2 | . 1 . 1 . . Proto ID Catalog 1 | . . . . . 1 Fabricator Hacks . | . . . . . . Repair Station Hacks 2 | . . . 2 . . Scan Component 1 | . . . 1 . . Repair 1 | . . . 1 . . Recycling Unit Hacks 1 | . 1 . . . . Retrieve Components 1 | . 1 . . . . Scanalyzer . | . . . . . . Garrison Access Hacks . | . . . . . . Unauthorized Hacks . | . . . . . . Terminals . | . . . . . . Fabricators . | . . . . . . Repair Stations . | . . . . . . Recycling Units . | . . . . . . Scanalyzers . | . . . . . . Garrison Access . | . . . . . . Data Cores Recovered . | . . . . . . Used . | . . . . . . Hacking Detections 14 | . 8 . 6 . . Full Trace Events 2 | . 1 . 1 . . Feedback Events 1 | . . . 1 . . Corruption 1 | . . . 1 . . Feedback Blocked . | . . . . . . Robot Schematics Acquired . | . . . . . . Robots Built . | . . . . . . Authchips . | . . . . . . Time . | . . . . . . Total Robot Build Rating . | . . . . . . Part Schematics Acquired . | . . . . . . Parts Built . | . . . . . . Authchips . | . . . . . . Time . | . . . . . . Total Part Build Rating . | . . . . . . Parts Repaired 1 | . . . 1 . . Time 26 | . . . 26 . . Parts Recycled . | . . . . . . Recycled Matter . | . . . . . . Retrieved Matter . | . . . . . . Retrieved Components 3 | . 3 . . . . Parts Scanalyzed . | . . . . . . Part Schematics Acquired . | . . . . . . Parts Damaged . | . . . . . . Bothacking | -11 -10 -10 -9 -9 -9 ------------ Run | Yrd Mat Min Mat Min Exi Used RIF Installer . | . . . . . . Robots Hacked . | . . . . . . Non-combat . | . . . . . . Combat . | . . . . . . Robot Hacks Applied . | . . . . . . Relay Couplers Released . | . . . . . . Fabnet Peak Effective % . | . . . . . . Robots Rewired . | . . . . . . Allies Hacked . | . . . . . . Hacks Repelled . | . . . . . . Allies | -11 -10 -10 -9 -9 -9 -------- Run | Yrd Mat Min Mat Min Exi Total Allies 3 | . . . . 3 . Largest Group 3 | . . . . 3 3 Highest-Rated Group 40 | . . . . 40 40 Highest-Rated Ally 16 | . . . . 16 16 Total Orders . | . . . . . . Ally Attacks 50 | . . . . . 50 Total Damage 285 | . . . . . 285 Kills 1 | . . . . . 1 Allies Corrupted . | . . . . . . Allies Melted . | . . . . . . Intel | -11 -10 -10 -9 -9 -9 ------- Run | Yrd Mat Min Mat Min Exi Active Infowar (turns) 4973 | 28 1421 925 1590 238 771 Seismic 4973 | 28 1421 925 1590 238 771 Robot Analysis Total . | . . . . . . Derelict Logs Recovered 1 | . . 1 . . . Drone Launches 38 | . . . . . 38 Drone Recoveries 35 | . . . . . 35 Exploration | -11 -10 -10 -9 -9 -9 ------------- Run | Yrd Mat Min Mat Min Exi Turns Passed 5075 | 128 1421 925 1590 240 771 Spaces Moved 2424 | 65 710 541 768 144 196 Core 40 | 6 . . . . 34 Treads 2384 | 59 710 541 768 144 162 Legs . | . . . . . . Wheels . | . . . . . . Hover . | . . . . . . Flight . | . . . . . . Fastest Speed 50 | 50 160 160 160 160 160 Average Speed 172 | 149 160 160 160 160 319 Slowest Speed 900 | 160 160 160 160 160 900 Overloaded Moves . | . . . . . . Propulsion Burnouts . | . . . . . . Robots Hopped . | . . . . . . Potential Cave-ins . | . . . . . . Cave-ins Triggered 1 | . . . 1 . . Exploration Rate (%) 58 | 4 97 98 60 35 57 Regions Visited 5 Branch Regions 3 Pre-discovered Areas 1 | . . 1 . . . Known Exits Taken 1 | . 1 . . . . Unknown Exits Taken 4 | 1 . 1 1 1 . Scrap Searched 1 | . . 1 . . . Spaces Dug 13 | . 2 5 6 . . Terrain Destroyed 131 | . 2 32 44 . 53 Melee 13 | . 2 5 6 . . Projectile . | . . . . . . AOE 118 | . . 27 38 . 53 Terrain Rammed . | . . . . . . Walls Destroyed . | . . . . . . Machines Disabled . | . . . . . . Actions | -11 -10 -10 -9 -9 -9 --------- Run | Yrd Mat Min Mat Min Exi Total 2973 | 80 880 569 987 152 305 Wait 255 | . 80 9 88 5 73 Move 2419 | 64 709 540 767 143 196 Hop . | . . . . . . Pick Up 42 | 2 13 1 20 1 5 Fast Attach 11 | 7 1 . 3 . . Attach 12 | . 3 . 4 . 5 Detach . | . . . . . . Swap 24 | . 6 2 12 3 1 Drop 23 | . 5 . 16 . 2 Fire 134 | 7 56 3 60 . 8 Melee 53 | . 7 14 17 . 15 Ram . | . . . . . . Kick . | . . . . . . Crush . | . . . . . . Escape Stasis . | . . . . . . Rewire . | . . . . . . Trap . | . . . . . . Miscellaneous . | . . . . . . Route ------- -11/Scrapyard -10/Materials (discovered 6 exits: *Mat x3 / *Min x2 / [*Sub]) -10/Mines (discovered 3 exits: *Mat x2 / [*Sub]) -9/Materials (discovered 3 exits: [*Mat x2] / *Min) -9/Mines -9/Exiles History --------- Turn | Location | Event 4 | -11/Scrapyard | Discovered new exit (range 14) 129 | -11/Scrapyard | Entered Materials 301 | -10/Materials | Build established: Mutant 629 | -10/Materials | Discovered new exit (range 3) 707 | -10/Materials | Discovered new exit (range 5) 772 | -10/Materials | Identified exit to Mines 1013 | -10/Materials | Discovered new exit (range 16) 1340 | -10/Materials | Discovered new exit (range 14) 1550 | -10/Materials | Entered Mines 1659 | -10/Mines | Discovered new exit (range 9) 1662 | -10/Mines | Discovered new exit (range 14) 1669 | -10/Mines | Received a Rocket Launcher from a helpful Derelict 1821 | -10/Mines | Learned location of Zion (-6) 2422 | -10/Mines | Discovered new exit (range 11) 2475 | -10/Mines | Entered Materials 2475 | -9/Materials | Evolved 2 slots: Propulsion x1, Utility x1 2687 | -9/Materials | Repaired Lgt. Treads 2912 | -9/Materials | Discovered new exit (range 6) 3133 | -9/Materials | Discovered new exit (range 10) 3659 | -9/Materials | Crushed by falling debris 3759 | -9/Materials | Discovered new exit (range 13) 4065 | -9/Materials | Entered Mines 4069 | -9/Mines | Assisted by bots powering up and referring to "LRC-V3" 4091 | -9/Mines | Found a Scrap Suit stashed away for nefarious purposes 4169 | -9/Mines | Found the Drone Emporium 4179 | -9/Mines | Found Prototype Device 4179 | -9/Mines | Identified Splice Drone Bay 4257 | -9/Mines | Deemed a non-threat by the Exiles lab entrance 4257 | -9/Mines | Discovered new exit (range 5) 4275 | -9/Mines | Assembled infested the area 4305 | -9/Mines | Entered Exiles 4305 | -9/Exiles | Accompanied by 3 allies 4348 | -9/Exiles | Met 8R-AWN 4374 | -9/Exiles | Met EX-HEX 4422 | -9/Exiles | Met EX-BIN 4441 | -9/Exiles | Aligned with FarCom system 4443 | -9/Exiles | Given EX-Vault access code 4463 | -9/Exiles | Attacked by the Exiles 4480 | -9/Exiles | Opened EX-Vault 4490 | -9/Exiles | Found Potential Leg 4492 | -9/Exiles | Found Potential Leg 4536 | -9/Exiles | Destroyed 7 combat bots 4582 | -9/Exiles | Core integrity fell below 50% 4587 | -9/Exiles | Lost 5 parts (2n1u2w) 4666 | -9/Exiles | Allies destroyed 8R-AWN 4695 | -9/Exiles | Lost 3 parts (1p1n1w) 5075 | -9/Exiles | Core integrity fell below 20% 5076 | -9/Exiles | Destroyed by DAS Turret with DAS Cannon Last Messages --------------- 04769_ AZGKA=KWR EE1OVRCWZVMV38O1< 04787_ System corrupted: Matter fused (-5). 04804_ System corrupted: Component data lost. 04838_ Splice Drone released from Splice Drone Bay. 04923_ System corrupted: Component data lost. 05051_ HYS& XZ1LB>T8=M Map ----- +----------------------------------------------------+ | ????????????? ?????????#" !== "X" """"?????????? | | ???????????????????????#" * """ #?????????? | | ???????????????????????#" ! """"""""#?????????? | | ??????????????????????##" "##########?????????? | | ?????????????????????##"" ##??????????????????? | | ????????????????######"" #???????????????????? | | ??????????????###""""""" ##??????????????????? | | ????????? ???"""""" " "" ##???###########???? | | ??????? "" """ " #####"""""""""##??? | | ???? " " " """ """"##?? | | ??? "" " #?? | | ??? " """#?? | | ?? " "#?? | | ?? " "##? | | ?#" ""## | | ?#""" """""" """ | | ##" ######""" " | | #"" ""#?????#####""" | | #""" """#??????????##""" | | """ """#????????????#"""" | | """ ""#???????????##"" | | "" #########?####"""" | | """ ##aaa;###""" | | "" % """ | | #"" t % % | | #"""" % n % @% | | ## % % " | | ?#" % " "" """ " | | ?#"""" ""## ##""" " " ""#" " | | ?#"" ""#### ######""" """##"""""""# | | ?#" """"##??# #????###""""########### | | ?#""" """#???# #??????######?????????? | | ?## ""##???! ?????????????????????? | | ??#"" """##???#" ????????????????????? | | ??##""" ##????#" ????????????????????? | | ???##"""" ##?????#!!""!"???????????????????? | | ????### #??????#######???????????????????? | | ??????##### ##????????????????????????????????? | | ??????????## #?????????????????????????????????? | | ???????????# #?????????????????????????????????? | | ???????????? ??????????????????????????????????? | | ?????????????????????????????????????????????????? | | ?????????????????????????????????????????????????? | | ?????????????????????????????????????????????????? | | ?????????????????????????????????????????????????? | | ?????????????????????????????????????????????????? | | ?????????????????????????????????????????????????? | | ?????????????????????????????????????????????????? | | ?????????????????????????????????????????????????? | | ?????????????????????????????????????????????????? | +----------------------------------------------------+ Best States ------------- Heat Dissipation 28 Energy Generation 14 Energy Capacity 280 Matter Stores 300 Matter Capacity 300 Sight Range 16 Terrain Scan Density 10 Armor Coverage 150 Power Shielding 33 Evasion (%) 40 Recoil Reduction 3 Item Schematics ----------------- None Robot Schematics ------------------ None Fabricated ------------ Nothing Repaired ---------- Lgt. Treads | 27% | -9/Materials Alien Tech Used ----------------- None Achievements -------------- None Challenges ------------ None Game ------ Seed NeutrinoCoilBallwheel Manual? 0 Play Time 00:39:55 Cumulative 47.9 hours Start 2025.05.24 @ 09:43:56 End 2025.05.24 @ 10:19:23 Sessions 1 Manual Loads 0 Difficulty Rogue Special Mode None Game No. 54 Rogue 54 Adventurer 0 Explorer 0 Win Type - Total 0 Types 0/0/0/0/0/0/0/0/0/0 Lore% 51 Gallery% 36 Achievement% 35 Wizard Run 0 Options --------- Layout 1 ASCII 0 Keyboard 0 Movement Mouse Keybinds 0 Fullscreen 1 Font 48/Smallcaps Map View 50x35 Zoom Use 0% Tactical HUD 1 Map Filters NONE Filters NONE Steam 1 RUN: 37ff81c0-f456-40e5-b8ce-d44ac46f0341